[Event "Romanian Team Blitz Open 2022"]
[Site "Sebes"]
[Date "2022.12.04"]
[Round "1.6"]
[White "Ionescu, Mihai"]
[Black "Murariu, Andrei"]
[Result "1/2-1/2"]
[ECO "D12"]
[WhiteElo "2243"]
[BlackElo "2493"]
[Annotator "TA"]
[PlyCount "114"]
[EventDate "2022.12.04"]
[EventType "blitz"]
[EventCountry "ROU"]
[SourceTitle "playchess.com"]
[Source "ChessBase"]
[SourceQuality "1"]
[TimeControl "180+2"]

{[%evp 17,114,56,74,72,88,75,81,84,73,55,60,23,52,29,26,15,19,14,38,19,20,7,18,0,0,0,125,0,16,18,19,0,0,0,0,0,0,0,0,-3,-3,-39,-4,-21,11,0,91,33,335,324,284,259,372,0,172,0,336,335,514,86,459,0,171,35,36,19,50,0,0,0,46,-16,5836,6893,5093,7520,29984,29985,29988,29981,29981,29982,29982,29980,29980,29981,29982,0,0,0,29982,0,0,0,29981,0,0,0,29972]} 1. Nf3 {[%emt 0:00:02]} d5 {[%emt 0:00:02]} 2. d4 {[%emt 0:00:04]} Nf6 {[%emt 0:00:02]} 3. c4 {[%emt 0:00:02]} c6 {[%emt 0:00:02]} 4. e3 {[%emt 0:00:02]} Bf5 {[%emt 0:00:02]} 5. cxd5 {[%emt 0:00:10]} cxd5 {[%emt 0:00:02]} 6. Qb3 {[%emt 0:00:01]} Qb6 {[%emt 0:00:08]} 7. Qxb6 {[%emt 0:00:09]} axb6 {[%emt 0:00:01]} 8. Bb5+ {[%emt 0:00:10]} Nc6 {[%emt 0:00:13]} 9. Nc3 {[%emt 0:00:14]} e6 {[%emt 0:00:10]} 10. Ne5 {[%emt 0:00:08] D12: Slav Defence: 3 Nf3 Nf6 4 e3 Bf5.} Rc8 {[%emt 0:00:26]} 11. Bd2 {[%emt 0:00:06] [#]} Nd7 $146 {[%emt 0:00:47]} ({Predecessor:} 11... Be7 12. O-O O-O 13. a3 Na5 14. Ba4 Rfd8 15. Rfc1 Bd6 16. b4 Nc4 17. Nxc4 dxc4 {1-0 (39) Hanoeman,S (1988)-Tchouka,Y (1591) Chess.com INT 2020}) 12. Nxd7 {[%emt 0:00:17] White is more active. White is better.} Kxd7 {[%emt 0:00:01][%cal Be8d7,Bd7c7,Bc7b8,Bb8a7,Ba7b6,Bb6a6][%mdl 32]} 13. Ke2 {[%emt 0:00:06]} Bd6 {[%emt 0:00:27]} 14. h3 {[%emt 0:00:19]} (14. Na4 {with more complications.} Kc7 15. Rac1 Ra8 16. h4) 14... Kc7 {[%emt 0:00:13]} 15. Rhc1 {[%emt 0:00:11]} (15. g4 $5 {[%cal Rg4f5]} Bg6 16. f4 $11) 15... Kb8 {[%emt 0:00:02]} 16. Na4 {[%emt 0:00:12]} Ka7 {[%emt 0:00:01]} 17. a3 {[%emt 0:00:28]} Na5 {[%emt 0:00:16]} 18. Bxa5 {[%emt 0:00:02]} bxa5 {[%emt 0:00:01]} 19. Nc3 {[%emt 0:00:16]} Kb6 {[%emt 0:00:09][%cal Oc8c3] aiming for ...Rxc3!} 20. Bd3 {[%emt 0:00:03]} Bxd3+ 21. Kxd3 {[%emt 0:00:01]} Rc4 {[%emt 0:00:10]} (21... Rc6 $11) 22. Ne2 {[%emt 0:00:09]} (22. e4 $1 $16) 22... Rhc8 {[%emt 0:00:01]} 23. Rxc4 {[%emt 0:00:04]} dxc4+ $11 {[%emt 0:00:01][%mdl 4096] Endgame KRB-KRN} 24. Kc3 {[%emt 0:00:09]} Ka6 {[%emt 0:00:02]} 25. a4 {[%emt 0:00:03]} b5 {[%emt 0:00:02]} 26. axb5+ {[%emt 0:00:01]} Kxb5 {[%emt 0:00:01]} 27. Kc2 {[%emt 0:00:06]} Bb4 {[%emt 0:00:02]} 28. f4 {[%emt 0:00:10]} Kc6 {[%emt 0:00:03]} 29. e4 {[%emt 0:00:02]} Rb8 {[%emt 0:00:01]} (29... f5 $5 {[%cal Rf5e4]}) 30. Nc3 {[%emt 0:00:03]} Bxc3 {[%emt 0:00:01]} 31. bxc3 {[%emt 0:00:01] KR-KR} Rb5 {[%emt 0:00:01]} (31... Ra8 $11) 32. g4 {[%emt 0:00:02]} (32. Ra4 $16) 32... f5 $2 {[%emt 0:00:01][%mdl 8192]} (32... g5 $1 $14) 33. gxf5 $18 {[%emt 0:00:03]} exf5 {[%emt 0:00:01]} 34. e5 {[%emt 0:00:00]} Kd5 {[%emt 0:00:01]} (34... Rd5 {is a better defense.} 35. Kd2 g6) 35. Re1 $2 {[%emt 0:00:06]} ({White must play} 35. h4 $18 {Black must now prevent Rb1.} Ke6 36. Ra4) 35... Ke6 $2 {[%emt 0:00:01] [#]} (35... a4 $11) 36. Ra1 $2 {[%emt 0:00:02]} (36. h4 $1 $18) 36... g6 $2 {[%emt 0:00:02][%mdl 8192]} (36... Kd5 $1 $11) 37. h4 {[%emt 0:00:01]} Kd5 {[%emt 0:00:02]} (37... h6 {keeps fighting.} 38. Ra2 g5) 38. Re1 $2 {[%emt 0:00:01]} (38. Rb1 $18 Rxb1 39. Kxb1) 38... Rb6 {[%emt 0:00:01][%mdl 8192] [#]} (38... Rb3 $16) 39. Ra1 $2 {[%emt 0:00:01]} ({Only move:} 39. Rb1 $1 $18 {[%cal Rb1b6]} Ra6 40. Rb5+ Kc6 41. Rc5+ Kd7 42. Rxc4) 39... Ra6 {[%emt 0:00:00]} (39... Rb5 $11 {and Black is okay.}) 40. Ra4 {[%emt 0:00:01]} ({Better is} 40. Rc1 $18) 40... Ke4 $14 {[%emt 0:00:04]} 41. Rxc4 {[%emt 0:00:05] Ra4 is the strong threat.} Kxf4 {[%emt 0:00:01]} 42. Rc7 {[%emt 0:00:02]} ({White should play} 42. Ra4 $1 $14) 42... a4 $11 {[%emt 0:00:02]} 43. Kb2 {[%emt 0:00:00]} Ke3 {[%emt 0:00:01]} (43... Ke4 $11) 44. d5 {[%emt 0:00:02]} ({White should try} 44. Rxh7 $14 Rb6+ 45. Ka3) 44... f4 $2 {[%emt 0:00:03][%mdl 8192]} (44... Ke4 $11 45. c4 Kxe5 46. Rxh7 Kd4) 45. d6 $18 {[%emt 0:00:02]} (45. Rxh7 a3+ 46. Ka2 Ke4 $11) 45... Ra5 {[%emt 0:00:28]} 46. e6 {[%emt 0:00:06][%cal Od6d7,Be5e6,Be6e7][%mdl 32] White wants to mate with d7!} f3 {[%emt 0:00:02]} 47. Rf7 {[%emt 0:00:01]} f2 {[%emt 0:00:05]} 48. d7 {[%emt 0:00:01]} (48. Rxh7 {gets mated.} Rb5+ 49. Ka2 f1=Q 50. Rh8 Qb1+ 51. Ka3 Qb3#) 48... Rf5 {[%emt 0:00:02]} 49. Rxf5 {[%emt 0:00:03]} (49. d8=R $2 {perishes.} f1=Q 50. Rxf5 gxf5 $19) 49... gxf5 {[%emt 0:00:01]} 50. d8=Q {[%emt 0:00:12]} (50. d8=B {leads to mate.} f1=Q 51. e7 Qb5+ 52. Ka2 Kd3 53. e8=Q Qxe8 54. Bg5 Kc2 55. Bf4 Qb5) 50... f1=Q {[%emt 0:00:00] KQ-KQ} 51. e7 {[%emt 0:00:00]} Qb5+ {[%emt 0:00:00]} 52. Ka1 $2 {[%emt 0:00:00]} (52. Kc1 Qf1+ 53. Qd1 Qb5 54. Qe1+ Kf4 55. e8=Q Qxe8 56. Qxe8 Kg3 57. Qe5+ f4 58. c4) 52... Qf1+ $11 {[%emt 0:00:00]} 53. Kb2 $2 {[%emt 0:00:00][%mdl 8192]} (53. Ka2 $11 Qc4+ 54. Kb2 Qb3+ 55. Kc1 Qxc3+ 56. Kd1 Qb3+ 57. Kc1 Qc4+ 58. Kd1 Qe2+ 59. Kc1 Qc4+ 60. Kd1 Qe2+ 61. Kc1 Qc4+) 53... Qb5+ {[%emt 0:00:00]} 54. Ka1 $2 {[%emt 0:00:00]} (54. Kc1 Qf1+ 55. Qd1 Qb5 56. Qe1+ Kf3 57. e8=Q Qxe8 58. Qxe8 Kg4 59. c4) 54... Qf1+ {[%emt 0:00:00]} 55. Kb2 $2 {[%emt 0:00:00][%mdl 8192]} (55. Ka2 $11 Qc4+ 56. Ka1 Qxc3+ 57. Kb1 Qb4+ 58. Kc1 Qc4+ 59. Kd1 Qe2+ 60. Kc1 Qc4+ 61. Kd1 Qe2+ 62. Kc1 Qc4+) 55... Qb5+ {[%emt 0:00:00]} 56. Ka1 $2 {[%emt 0:00:01]} (56. Kc1 {mates} Qf1+ 57. Qd1 Qb5 58. Qe1+ Kf3 59. e8=Q Qxe8 60. Qxe8 a3 61. Qh5+ Kf4 62. Qxh7) 56... Qf1+ {[%emt 0:00:00]} 57. Kb2 $2 {[%emt 0:00:01][%mdl 8192]} (57. Ka2 $11 Qc4+ 58. Ka1 Qxc3+ 59. Kb1 Qb3+ 60. Kc1 Qc3+ 61. Kd1 Qb3+ 62. Kc1 Qc3+ 63. Kd1 Qb3+ 64. Kc1) 57... Qb5+ {[%emt 0:00:28][%mdl 32768] Weighted Error Value: White=0.93/Black=0.78. An unexpected result.} 1/2-1/2

[Event "Romanian Team Blitz Open 2022"]
[Site "Sebes"]
[Date "2022.12.04"]
[Round "1.7"]
[White "Grecescu, Gabriel-Andrei"]
[Black "Dragomirescu, Calin"]
[Result "1/2-1/2"]
[ECO "A06"]
[WhiteElo "2388"]
[BlackElo "1971"]
[Annotator "TA"]
[PlyCount "70"]
[EventDate "2022.12.04"]
[EventType "blitz"]
[EventCountry "ROU"]
[SourceTitle "playchess.com"]
[Source "ChessBase"]
[SourceQuality "1"]
[TimeControl "180+2"]

{[%evp 10,70,25,6,13,-24,14,19,28,20,86,70,93,78,76,79,78,73,125,118,197,193,187,170,193,199,211,237,361,272,295,203,395,381,664,441,355,335,904,888,1506,1449,1291,1123,1074,1040,1002,430,401,373,339,246,227,164,381,340,457,87,93,0,0,-2,0]} 1. c4 {[%emt 0:00:02]} e6 {[%emt 0:00:00]} 2. Nf3 {[%emt 0:00:02]} d5 {[%emt 0:00:01]} 3. e3 {[%emt 0:00:00]} c6 {[%emt 0:00:02]} 4. b3 {[%emt 0:00:01]} Nf6 {[%emt 0:00:01]} 5. Bb2 {[%emt 0:00:01]} Nbd7 {[%emt 0:00:01]} 6. Be2 {[%emt 0:00:02]} Be7 {[%emt 0:00:05] A06: Réti Opening: 1 Nf3 d5.} 7. g4 {[%emt 0:00:01]} h6 {[%emt 0:00:01]} 8. Rg1 {[%emt 0:00:02] [#]} dxc4 $146 {[%emt 0:00:06]} ({Predecessor:} 8... Rg8 9. h4 Ne4 10. d3 Nd6 11. g5 hxg5 12. hxg5 dxc4 13. bxc4 Qb6 14. Qc2 c5 {1-0 (61) Grecescu,G (2362)-Vlad,O (1858) Bucharest 2022}) 9. bxc4 {[%emt 0:00:02]} a5 {[%emt 0:00:06]} (9... Bd6 $11 {remains equal.}) 10. h4 {[%emt 0:00:02][%cal Bh2h4,Bh4g5,Bg5g6][%mdl 32]} Rg8 {[%emt 0:00:08]} 11. g5 {[%emt 0:00:01]} hxg5 {[%emt 0:00:01]} 12. hxg5 {[%emt 0:00:01]} Ne4 {[%emt 0:00:04][%cal Re4g5]} 13. g6 {[%emt 0:00:25] gxf7+ is the strong threat.} f6 {[%emt 0:00:05]} (13... f5 $142) 14. Qc2 $16 {[%emt 0:00:09]} (14. Nc3 Nxc3 15. Bxc3 Bb4 $14) 14... Nec5 {[%emt 0:00:08]} (14... f5 $16) 15. d4 $18 {[%emt 0:00:17]} Na6 {[%emt 0:00:03]} 16. a3 {[%emt 0:00:02]} Nf8 {[%emt 0:00:10]} 17. Nc3 {[%emt 0:00:10]} Nc7 {[%emt 0:00:03]} 18. e4 {[%emt 0:02:18][%cal Be3e4,Be4d5,Bd5d6][%mdl 32]} b6 (18... b5 $142 19. cxb5 cxb5) 19. d5 {[%emt 0:00:00]} cxd5 {[%emt 0:02:35]} 20. cxd5 {[%emt 0:00:00]} exd5 $2 {[%emt 0:00:00]} (20... e5 {was necessary.} 21. Nb5 Nxb5) 21. exd5 {[%emt 0:00:00]} ({Resist} 21. Nxd5 Bc5 22. O-O-O Nxd5 23. Rxd5 Qc7) 21... Bd6 $2 {[%emt 0:00:00]} (21... Nd7 22. Ne4 Nc5) 22. O-O-O {[%emt 0:00:00]} Nd7 {[%emt 0:00:00]} 23. Ne4 {[%emt 0:00:00]} Bf4+ {[%emt 0:00:00]} (23... Nc5 24. Nd4 Kf8) 24. Kb1 {[%emt 0:00:00]} Ne5 {[%emt 0:00:00]} 25. d6 {[%emt 0:00:00]} Ne6 {[%emt 0:00:00]} 26. Nxe5 {[%emt 0:00:00]} fxe5 {[%emt 0:00:00]} 27. d7+ {[%emt 0:00:00]} Bxd7 {[%emt 0:00:00][%cal Bc8d7,Bd7b5,Bb5d3][%mdl 32]} 28. Bb5 {[%emt 0:00:06]} (28. Nd6+ $142 Ke7 29. Nf5+ Ke8 30. Rxd7 $1 {[%mdl 512]} Qxd7 31. Bb5 $1 {[%mdl 512]} Qxb5 32. Nd6+ Ke7 33. Nxb5) 28... Bxb5 {[%emt 0:00:00]} 29. Rxd8+ {[%emt 0:00:01]} Rxd8 {[%emt 0:00:00]} 30. Rd1 {[%emt 0:00:03] Prevents Bd3. Threatens to win with Nd6+.} Ke7 {[%emt 0:00:00] Against Nd6} 31. Nc3 {[%emt 0:00:04] Chess con chili.} Rxd1+ $2 {[%emt 0:00:00]} (31... Bc4) 32. Qxd1 {[%emt 0:00:01]} Rd8 {[%emt 0:00:00]} 33. Qh1 {[%emt 0:00:02]} (33. Nd5+ $18 {is the precise move to win.} Kf8 34. Qb3) 33... Bd3+ $16 {[%emt 0:00:00] [#]} 34. Ka2 {[%emt 0:00:02]} (34. Ka1 $1 $16) 34... Bc4+ $11 {[%emt 0:00:00] A strong pair of Bishops.} 35. Ka1 {[%emt 0:00:03]} Nd4 {[%emt 0:00:00] Weighted Error Value: White=0.89/Black=0.70} 1/2-1/2

[Event "Romanian Team Blitz Open 2022"]
[Site "Sebes"]
[Date "2022.12.04"]
[Round "1.8"]
[White "Santimbrean, Mihnea-Nicolae"]
[Black "Cnejev, Vladimir-Alexandru"]
[Result "0-1"]
[ECO "C54"]
[WhiteElo "1491"]
[BlackElo "2293"]
[Annotator "TA"]
[PlyCount "54"]
[EventDate "2022.12.04"]
[EventType "blitz"]
[EventCountry "ROU"]
[SourceTitle "playchess.com"]
[Source "ChessBase"]
[SourceQuality "1"]
[TimeControl "180+2"]

{[%evp 11,54,27,23,18,18,17,19,16,46,-60,-63,-53,-53,-81,-76,-161,-164,-130,-135,-119,-118,-287,-290,-273,-135,-689,-683,-1010,-1001,-1375,-1327,-1519,-1498,-1962,-1906,-2104,-2073,-2239,-2154,-3189,-2791,-2863,-2843,-29995,-29996]} 1. e4 {[%emt 0:00:01]} e5 {[%emt 0:00:00]} 2. Nf3 {[%emt 0:00:01]} Nc6 {[%emt 0:00:01]} 3. Bc4 {[%emt 0:00:01]} Bc5 {[%emt 0:00:01]} 4. c3 {[%emt 0:00:01]} Nf6 {[%emt 0:00:01]} 5. d3 {[%emt 0:00:02]} a6 {[%emt 0:00:02]} 6. Bb3 {[%emt 0:00:02]} d6 {[%emt 0:00:02]} 7. h3 {[%emt 0:00:02] C54: Giuoco Piano: 4 c3 Nf6, main lines with 5 d4 and 5 d3.} Ba7 {[%emt 0:00:03]} 8. O-O {[%emt 0:00:03]} h6 {[%emt 0:00:02]} 9. Nbd2 {[%emt 0:00:03] The position is equal.} g5 {[%emt 0:00:01]} 10. Nh2 {[%emt 0:00:04] Against g4} (10. Nc4 $1 $14) 10... g4 $15 {[%emt 0:00:19] has lost popularity (10...Rg8).} 11. hxg4 {[%emt 0:00:08]} ({Of course not} 11. Nxg4 Nxg4 12. hxg4 Qh4 $11) 11... Rg8 $1 {[%emt 0:00:00][%cal Rf6g4,Bh8g8,Bg8g5,Bg5h5][%mdl 32]} 12. Kh1 {[%emt 0:00:14]} Nxg4 {[%emt 0:00:00] Black is more active.} 13. Qf3 {[%emt 0:00:45]} (13. Ndf3 $17 {was necessary.}) 13... Qe7 $19 {[%emt 0:00:00] [#] White must now prevent ...Nxh2.} 14. Nxg4 $146 {[%emt 0:01:29]} ({Predecessor:} 14. d4 Nxh2 15. Kxh2 Bg4 16. Qd3 exd4 17. Nf3 dxc3 18. Bd5 Ne5 19. Nxe5 Qxe5+ 20. Qg3 {0-1 (57) Rodchenkov,S (2346)-Deuer,M (2304) Chess.com INT 2022}) 14... Bxg4 {[%emt 0:00:00]} ({Weaker is} 14... Rxg4 15. g3 $15) 15. Qg3 {[%emt 0:00:02] Against Qh4+} O-O-O {[%emt 0:00:00] aiming for ...Be2.} 16. Qh2 $2 {[%emt 0:00:05] [#]} (16. Nf3 $17) 16... Rg5 $1 {[%emt 0:00:35]} 17. Bd1 {[%emt 0:00:05]} Qe6 {[%emt 0:01:04]} (17... Bxd1 $19 {and Black stays clearly on top.} 18. Rxd1 Bxf2) 18. Nf3 $2 {[%emt 0:00:14][%mdl 8192]} (18. Bxg4 $17 Qxg4 19. f3) 18... Rh5 {[%emt 0:00:04]} 19. Nh4 {[%emt 0:00:04]} Bxd1 {[%emt 0:00:03]} 20. Rxd1 {[%emt 0:00:04]} Qg4 {[%emt 0:00:05]} 21. g3 {[%emt 0:00:04]} Qxd1+ {[%emt 0:00:04]} 22. Kg2 {[%emt 0:00:02]} Rg8 {[%emt 0:00:14] [#] Strongly threatening ...Qe2.} 23. Qh3+ {[%emt 0:00:01]} Kb8 {[%emt 0:00:09]} 24. a3 {[%emt 0:00:05]} Qe1 {[%emt 0:00:11]} 25. Be3 {[%emt 0:00:06]} Qxa1 {[%emt 0:00:03]} 26. Bxa7+ {[%emt 0:00:06]} Kxa7 {[%emt 0:00:02]} 27. Qd7 {[%emt 0:00:00]} Rxh4 {[%emt 0:00:05] White got outplayed after the opening.   Weighted Error Value: White=1.74/Black=0.09 (flawless)} 0-1

[Event "Romanian Team Blitz Open 2022"]
[Site "Sebes"]
[Date "2022.12.04"]
[Round "1.9"]
[White "Zaim, Marian"]
[Black "Anton, Teodor"]
[Result "0-1"]
[ECO "A30"]
[WhiteElo "1935"]
[BlackElo "2438"]
[Annotator "TA"]
[PlyCount "72"]
[EventDate "2022.12.04"]
[EventType "blitz"]
[EventCountry "ROU"]
[SourceTitle "playchess.com"]
[Source "ChessBase"]
[SourceQuality "1"]
[TimeControl "180+2"]

{[%evp 15,72,32,26,22,26,27,35,25,42,19,16,9,28,23,26,26,41,25,37,29,41,25,41,14,43,17,25,-18,49,46,58,-116,-129,-112,84,-72,-66,-72,-56,-86,-65,-240,-243,-226,-30,-31,-21,-156,-112,-121,-100,-515,-512,-931,-918,-1311,-1297,-1522,-1522]} 1. Nf3 {[%emt 0:00:02]} c5 {[%emt 0:00:01]} 2. c4 {[%emt 0:00:04]} Nf6 {[%emt 0:00:02]} 3. g3 {[%emt 0:00:07]} b6 {[%emt 0:00:01]} 4. Bg2 {[%emt 0:00:01]} Bb7 {[%emt 0:00:01]} 5. O-O {[%emt 0:00:01]} e6 {[%emt 0:00:01]} 6. d4 {[%emt 0:00:03]} cxd4 {[%emt 0:00:01]} 7. Nxd4 {[%emt 0:00:00]} Bxg2 {[%emt 0:00:01]} 8. Kxg2 {[%emt 0:00:01]} Qc7 {[%emt 0:00:01]} 9. b3 {[%emt 0:00:07] A30: Symmetrical English: Double Fianchetto and Hedgehog.} Qb7+ {[%emt 0:00:01]} 10. f3 {[%emt 0:00:05]} a6 {[%emt 0:00:01]} 11. Nc3 {[%emt 0:00:02] White is slightly better.} Be7 {[%emt 0:00:01] [#]} 12. Be3 $146 {[%emt 0:00:10]} ({Predecessor:} 12. e4 d6 13. Be3 O-O 14. Qe2 Nc6 15. Nxc6 Qxc6 16. Bd4 Nd7 17. Rfd1 Rfe8 18. Rac1 {0-1 (66) Bocharov,D (2540)-Schekachikhin,M (2402) Moscow 2019}) 12... O-O {[%emt 0:00:03]} 13. Qd2 {[%emt 0:00:03]} d6 {[%emt 0:00:02]} 14. Bf2 {[%emt 0:00:02]} Nbd7 {[%emt 0:00:02]} (14... Ng4 {seems wilder.} 15. Bg1 Nd7 16. e4 Nge5) 15. e4 {[%emt 0:00:04]} (15. Rad1 {looks sharper.} Ng4 16. Bg1 Nge5 17. e4) 15... Rfe8 {[%emt 0:00:03]} 16. Rfd1 {[%emt 0:00:02]} Rac8 {[%emt 0:00:02]} 17. Rac1 {[%emt 0:00:02]} Bf8 {[%emt 0:00:02]} 18. Qe2 {[%emt 0:00:14]} g6 {[%emt 0:00:08]} 19. Qd2 {[%emt 0:00:03]} Ne5 {[%emt 0:00:08]} 20. Rc2 {[%emt 0:00:03]} Rcd8 {[%emt 0:00:06]} 21. Qc1 {[%emt 0:00:06]} Bg7 {[%emt 0:00:12]} ({Better is} 21... d5 $1 $11 22. cxd5 exd5 23. exd5 Nxd5) 22. Be3 $14 {[%emt 0:00:07]} Qa8 {[%emt 0:00:10]} 23. Rcd2 $2 {[%emt 0:00:05]} (23. Bg5 $14 {keeps the upper hand.}) 23... d5 $1 $17 {[%emt 0:00:15][%cal Rd5e4]} 24. Bf4 {[%emt 0:00:20] [#]} Ned7 {[%emt 0:00:15] [#]} (24... Nxf3 $1 $17 {[%mdl 512] and life is bright.} 25. Nxf3 (25. Kxf3 $2 {loses.} dxe4+ 26. Ke2 Ng4 $19) 25... dxe4 26. Nxe4 (26. Rxd8 $2 exf3+ 27. Kf1 Rxd8 $19) 26... Nxe4 27. Rxd8 Rxd8) 25. cxd5 $2 {[%emt 0:00:13]} (25. e5 $1 $16 {[%cal Re5f6] is necessary to keep the advantage.}) 25... e5 {[%emt 0:00:04]} 26. Nc6 {[%emt 0:00:09]} exf4 {[%emt 0:00:01]} 27. Nxd8 {[%emt 0:00:03]} Qxd8 {[%emt 0:00:05]} 28. Ne2 {[%emt 0:00:05]} (28. Rc2 $1 $15) 28... fxg3 $19 {[%emt 0:00:02]} 29. hxg3 {[%emt 0:00:01] [#]} Nh5 $2 {[%emt 0:00:03]} ({Black should play} 29... Bh6 $1 $19 30. Qb2 (30. Nf4 $2 Bxf4 31. gxf4 Nh5 $19) 30... Bxd2 31. Qxd2 Ne5) 30. Rc2 $1 $11 {[%emt 0:00:07]} Bf8 {[%emt 0:00:08][%cal Bg7f8,Bf8c5,Bc5d6,Bd6f4][%mdl 32]} 31. Nd4 {[%emt 0:00:08]} (31. d6 $11 {was the only way to keep the balance.}) 31... Bc5 {[%emt 0:00:04]} 32. Nc6 {[%emt 0:00:12]} Qf6 {[%emt 0:00:02] Hoping for ...Bd6. The board is on fire.} 33. a3 $2 {[%emt 0:00:10][%mdl 8192]} (33. Re2 $17 {nothing else works.}) 33... Bd6 $19 {[%emt 0:00:02] Black is clearly winning.} ({Not} 33... Ne5 $2 34. Rf1 $19) 34. f4 {[%emt 0:00:12]} (34. Rh1 $142 Nxg3 35. Rh3) 34... Rxe4 {[%emt 0:00:02][%cal Rd6f4] ...Bxf4! is the strong threat.} 35. Qd2 {[%emt 0:00:10] [#]} Bxf4 $1 {[%emt 0:00:05]} 36. Qd3 {[%emt 0:00:06]} (36. gxf4 Nxf4+) 36... Re3 {[%emt 0:00:11] Weighted Error Value: White=1.06/Black=0.28 (precise)} 0-1

[Event "Romanian Team Blitz Open 2022"]
[Site "Sebes"]
[Date "2022.12.04"]
[Round "1.10"]
[White "David, Alexandru-Vasile"]
[Black "Tinta, Gheorghe"]
[Result "1-0"]
[ECO "B38"]
[WhiteElo "2404"]
[BlackElo "1855"]
[Annotator "TA"]
[PlyCount "91"]
[EventDate "2022.12.04"]
[EventType "blitz"]
[EventCountry "ROU"]
[SourceTitle "playchess.com"]
[Source "ChessBase"]
[SourceQuality "1"]
[TimeControl "180+2"]

{[%evp 19,91,43,64,39,54,36,33,0,51,43,65,57,74,8,147,57,54,49,110,97,133,131,128,117,114,119,98,109,117,48,97,94,95,83,116,94,192,165,451,452,427,435,411,229,379,305,446,458,533,427,485,483,509,491,520,520,606,597,1027,994,972,962,1269,1260,1195,1127,1645,1483,3197,2672,29981,29982,29989,29990]} 1. d4 {[%emt 0:00:03]} g6 {[%emt 0:00:01]} 2. c4 {[%emt 0:00:02]} Bg7 {[%emt 0:00:02]} 3. e4 {[%emt 0:03:03]} d6 {[%emt 0:03:05]} 4. Nc3 {[%emt 0:00:00]} Nf6 {[%emt 0:00:00]} 5. Nf3 {[%emt 0:00:00]} O-O {[%emt 0:00:00]} 6. Be2 {[%emt 0:00:00]} c5 {[%emt 0:00:00]} 7. O-O {[%emt 0:00:00]} cxd4 {[%emt 0:00:00]} 8. Nxd4 {[%emt 0:00:00]} Nc6 {[%emt 0:00:00]} 9. Be3 {[%emt 0:00:00]} a6 {[%emt 0:00:00]} 10. f3 {[%emt 0:00:00]} Bd7 {[%emt 0:00:00]} 11. a4 {[%emt 0:00:00] B38: Sicilian: Maroczy Bind with 5...Bg7 and 7...0-0.} Rb8 {[%emt 0:00:00]} 12. Rc1 {[%emt 0:00:00]} Qa5 {[%emt 0:00:00]} 13. b3 {[%emt 0:00:00] White is slightly better.} Ne5 {[%emt 0:00:00]} (13... e5 $11 14. Nxc6 bxc6) 14. Qd2 {[%emt 0:00:00] [#]} (14. Nd5 {seems wilder.} e6 15. Nxf6+ Bxf6 16. Nc2) 14... Rfc8 $146 {[%emt 0:00:00]} ({Predecessor:} 14... Kh8 15. Kh1 Ng8 16. f4 Ng4 17. Bxg4 Bxg4 18. f5 e5 19. Nde2 gxf5 20. exf5 Bxe2 21. Qxe2 {1-0 (63) Tuay,J-Casas,J (1889) San Andres Islas 2008}) 15. Rfd1 {[%emt 0:00:00]} Nc6 {[%emt 0:00:00]} 16. Nc2 {[%emt 0:00:00]} (16. Rb1 $16) 16... Ne8 {[%emt 0:00:00] [#]} (16... Be6 $11 {keeps the balance.}) 17. Nd5 {[%emt 0:00:00]} ({Better is} 17. b4 $1 $16 {[%cal Rb4a5]} Bxc3 18. Qxc3 (18. bxa5 Bxd2 19. Bxd2 Ne5 $11)) 17... Qxd2 $14 {[%emt 0:00:00]} 18. Bxd2 {[%emt 0:00:00]} e6 {[%emt 0:00:00]} (18... f5 $14) 19. Nb6 $16 {[%emt 0:00:00][%csl LRc8,LRd7]} Rd8 {[%emt 0:00:00]} 20. Bg5 {[%emt 0:00:00]} f6 {[%emt 0:00:00]} 21. Bf4 {[%emt 0:00:00] White has more active pieces.} e5 {[%emt 0:00:00] Prevents c5.} 22. Nxd7 {[%emt 0:00:00]} Rxd7 {[%emt 0:00:00]} 23. Be3 {[%emt 0:00:00]} f5 {[%emt 0:00:00]} 24. Bd3 {[%emt 0:00:00]} (24. exf5 $16 gxf5 25. Rd2) 24... f4 {[%emt 0:00:00]} (24... fxe4 $14 25. fxe4 (25. Bxe4 Nf6 $14) 25... Nf6) 25. Bf2 {[%emt 0:00:00]} Nf6 {[%emt 0:00:00]} 26. Be2 {[%emt 0:00:00]} Rbd8 {[%emt 0:00:00]} 27. Rd2 {[%emt 0:00:00]} a5 {[%emt 0:00:00]} (27... Bf8 $16) 28. Rcd1 $18 {[%emt 0:00:00]} Nb4 $2 {[%emt 0:00:00]} (28... Bf8 {keeps fighting.} 29. Bb6 Be7) 29. Nxb4 {[%emt 0:00:00]} ({Not} 29. Bb6 Na6 30. Bxd8 Rxd8 31. Rxd6 Rxd6 $18) 29... axb4 {[%emt 0:00:00]} 30. Bb6 {[%emt 0:00:00]} Rc8 {[%emt 0:00:08]} 31. Ba5 {[%emt 0:00:00]} ({Weaker is} 31. Rxd6 Rxd6 32. Rxd6 Kf7 $18) (31. c5 $142) 31... g5 {[%emt 0:00:09]} (31... Bf8 $142 32. Bxb4 Rc6) 32. Bxb4 {[%emt 0:00:00]} h5 {[%emt 0:00:01]} (32... Bf8 {was necessary.} 33. Bxd6 Rcd8) 33. Bxd6 {[%emt 0:00:00]} ({But not} 33. Rxd6 Rxd6 34. Bxd6 Rd8 35. Bxe5 Rxd1+ 36. Bxd1 Ne8 $18) 33... Rcd8 {[%emt 0:00:04]} 34. Bb4 {[%emt 0:00:00]} Rxd2 {[%emt 0:00:04]} 35. Rxd2 {[%emt 0:00:00]} Rxd2 {[%emt 0:00:03]} 36. Bxd2 {[%emt 0:00:00][%mdl 4096] Endgame KBB-KBN} Bf8 {[%emt 0:00:07]} 37. b4 {[%emt 0:00:00]} Nd7 {[%emt 0:00:05]} 38. c5 {[%emt 0:00:00][%cal Bc4c5,Bc5b6][%mdl 32]} Nb8 {[%emt 0:00:15]} 39. Bc4+ {[%emt 0:00:00]} Kg7 {[%emt 0:00:00]} 40. Bd5 {[%emt 0:00:00]} b6 {[%emt 0:00:04]} 41. cxb6 {[%emt 0:00:00]} Kf6 {[%emt 0:00:03]} 42. Kf1 {[%emt 0:00:00]} Na6 {[%emt 0:00:01]} 43. b5 {[%emt 0:00:00]} Nc5 {[%emt 0:00:03]} 44. a5 {[%emt 0:00:00][%cal Ba4a5,Ba5a6,Ba6a7][%mdl 32] [#] White wants to mate with a6.} Bd6 {[%emt 0:00:03]} 45. a6 {[%emt 0:00:00]} g4 {[%emt 0:00:05]} 46. a7 {[%emt 0:00:00] Weighted Error Value: White=0.30/Black=0.51} 1-0